[Event "*** Titled Tuesday 3|2 Blitz"]
[Site "Chess.com"]
[Date "2017.06.06"]
[Round "3"]
[White "WinnieTPooh"]
[Black "DiamondCrusher22"]
[Result "0-1"]
[WhiteElo "1938"]
[BlackElo "2019"]
[TimeControl "180+2"]
[EndTime "14:25:21 PDT"]
[Termination "DiamondCrusher22 won by resignation"]

1. d4 {[%clk 0:03:02]} 1... d5 {[%clk 0:02:59.6]} 2. c4 {[%clk 0:03:02.2]} 2...
c6 {[%clk 0:03:00.4]} 3. Nf3 {[%clk 0:03:03.3]} 3... Nf6 {[%clk 0:03:00.7]} 4.
Qc2 {[%clk 0:03:04.5]} 4... e6 {[%clk 0:02:58.5]} 5. Nbd2 {[%clk 0:03:04.9]}
5... Nbd7 {[%clk 0:02:57.3]} 6. g3 {[%clk 0:03:06.1]} 6... Bd6 {[%clk 0:02:57]}
7. Bg2 {[%clk 0:03:07]} 7... O-O {[%clk 0:02:57.5]} 8. O-O {[%clk 0:03:08.1]}
8... Re8 {[%clk 0:02:30.7]} 9. e4 {[%clk 0:03:08.3]} 9... dxe4 {[%clk
0:02:27.4]} 10. Nxe4 {[%clk 0:03:10.2]} 10... Nxe4 {[%clk 0:02:28.1]} 11. Qxe4
{[%clk 0:03:12.1]} 11... Nf6 {[%clk 0:02:28.9]} 12. Qe2 {[%clk 0:03:11.8]} 12...
c5 {[%clk 0:02:17.3]} 13. Rd1 {[%clk 0:02:55.4]} 13... cxd4 {[%clk 0:01:54]} 14.
Nxd4 {[%clk 0:02:57.3]} 14... a6 {[%clk 0:01:54.6]} 15. Be3 {[%clk 0:02:28.4]}
15... Qc7 {[%clk 0:01:49.8]} 16. Rac1 {[%clk 0:02:26.3]} 16... e5 {[%clk
0:01:47.3]} 17. Nb3 {[%clk 0:02:25.5]} 17... Bg4 {[%clk 0:01:37.4]} 18. f3
{[%clk 0:02:23.9]} 18... Bh5 {[%clk 0:01:35.3]} 19. c5 {[%clk 0:02:24.5]} 19...
Bf8 {[%clk 0:01:33.8]} 20. Rd2 {[%clk 0:02:05.7]} 20... e4 {[%clk 0:01:31.7]}
21. g4 {[%clk 0:02:05.6]} 21... exf3 {[%clk 0:01:22.8]} 22. Bxf3 {[%clk
0:02:07.5]} 22... Nxg4 {[%clk 0:01:14.2]} 23. Bxg4 {[%clk 0:01:56.2]} 23... Bxg4
{[%clk 0:01:12.8]} 24. Qxg4 {[%clk 0:01:58.1]} 24... Rxe3 {[%clk 0:01:12.4]} 25.
Rd7 {[%clk 0:01:59]} 25... Qc6 {[%clk 0:01:01.2]} 26. Rxf7 {[%clk 0:00:51.7]}
26... Re4 {[%clk 0:00:29.8]} 27. Qd7 {[%clk 0:00:34.3]} 27... Qg6+ {[%clk
0:00:28.6]} 28. Kh1 {[%clk 0:00:28.2]} 28... Qxf7 {[%clk 0:00:28.8]} 0-1

[Event "*** Titled Tuesday 3|2 Blitz"]
[Site "Chess.com"]
[Date "2017.06.06"]
[Round "3"]
[White "1lec"]
[Black "Blitzking4444"]
[Result "1-0"]
[WhiteElo "2026"]
[BlackElo "2001"]
[TimeControl "180+2"]
[EndTime "14:25:53 PDT"]
[Termination "1lec won on time"]

1. e4 {[%clk 0:03:02]} 1... e6 {[%clk 0:03:01.2]} 2. d4 {[%clk 0:03:02.5]} 2...
d5 {[%clk 0:03:02.4]} 3. Nd2 {[%clk 0:03:03.9]} 3... Be7 {[%clk 0:03:03.2]} 4.
e5 {[%clk 0:03:02.4]} 4... c5 {[%clk 0:03:03.8]} 5. c3 {[%clk 0:02:58.6]} 5...
Nc6 {[%clk 0:03:04.7]} 6. Bd3 {[%clk 0:03:00]} 6... Bd7 {[%clk 0:02:56.8]} 7.
Ne2 {[%clk 0:02:56.7]} 7... cxd4 {[%clk 0:02:55.3]} 8. cxd4 {[%clk 0:02:57.8]}
8... Nb4 {[%clk 0:02:56.5]} 9. Bb1 {[%clk 0:02:53.9]} 9... Bb5 {[%clk
0:02:57.5]} 10. Nc3 {[%clk 0:02:54.9]} 10... Ba6 {[%clk 0:02:53.3]} 11. Nf3
{[%clk 0:02:52.9]} 11... Rc8 {[%clk 0:02:22.4]} 12. a3 {[%clk 0:02:52.7]} 12...
Qa5 {[%clk 0:02:22.7]} 13. Bg5 {[%clk 0:02:02.3]} 13... Bc4 {[%clk 0:01:51.2]}
14. Bxe7 {[%clk 0:01:51.4]} 14... Nxe7 {[%clk 0:01:51.8]} 15. h4 {[%clk
0:01:44.5]} 15... Qa6 {[%clk 0:01:50.6]} 16. h5 {[%clk 0:01:23.4]} 16... Nd3+
{[%clk 0:01:44.4]} 17. Bxd3 {[%clk 0:01:24.2]} 17... Bxd3 {[%clk 0:01:45.5]} 18.
h6 {[%clk 0:01:22.1]} 18... g6 {[%clk 0:01:43]} 19. Qd2 {[%clk 0:01:22.8]} 19...
Bf5 {[%clk 0:01:08.8]} 20. Nh4 {[%clk 0:00:58]} 20... Qd3 {[%clk 0:00:49.8]} 21.
Qxd3 {[%clk 0:00:56.7]} 21... Bxd3 {[%clk 0:00:50.1]} 22. Kd2 {[%clk 0:00:57.9]}
22... Ba6 {[%clk 0:00:47.8]} 23. b4 {[%clk 0:00:52.6]} 23... Bc4 {[%clk
0:00:46.7]} 24. Nf3 {[%clk 0:00:39.3]} 24... O-O {[%clk 0:00:34.6]} 25. Rac1
{[%clk 0:00:33.5]} 25... Rc7 {[%clk 0:00:08.8]} 26. Nb5 {[%clk 0:00:29.5]} 26...
Rc6 {[%clk 0:00:03.9]} 27. Nd6 {[%clk 0:00:23.5]} 27... b5 {[%clk 0:00:04.9]}
28. Rc3 {[%clk 0:00:18.7]} 1-0

[Event "*** Titled Tuesday 3|2 Blitz"]
[Site "Chess.com"]
[Date "2017.06.06"]
[Round "3"]
[White "Gordima"]
[Black "Fy_Rakotomaharo"]
[Result "1-0"]
[WhiteElo "2534"]
[BlackElo "2414"]
[TimeControl "180+2"]
[EndTime "14:25:57 PDT"]
[Termination "Gordima won by resignation"]

1. Nf3 {[%clk 0:03:02]} 1... Nf6 {[%clk 0:02:59.7]} 2. c4 {[%clk 0:03:03.3]}
2... g6 {[%clk 0:02:59.5]} 3. Nc3 {[%clk 0:03:04.3]} 3... d5 {[%clk 0:03:00.1]}
4. cxd5 {[%clk 0:03:06.2]} 4... Nxd5 {[%clk 0:03:01.1]} 5. h4 {[%clk 0:03:08.1]}
5... h6 {[%clk 0:02:57.7]} 6. e4 {[%clk 0:03:04.5]} 6... Nxc3 {[%clk 0:02:57.9]}
7. dxc3 {[%clk 0:03:04.2]} 7... Qxd1+ {[%clk 0:02:58.2]} 8. Kxd1 {[%clk
0:03:06.1]} 8... Bg7 {[%clk 0:02:55.5]} 9. Bf4 {[%clk 0:02:53.4]} 9... c6 {[%clk
0:02:51]} 10. Kc2 {[%clk 0:02:52.4]} 10... Nd7 {[%clk 0:02:47.3]} 11. Nd2 {[%clk
0:02:43.6]} 11... b6 {[%clk 0:02:26.9]} 12. a4 {[%clk 0:02:42.7]} 12... a5
{[%clk 0:02:17.1]} 13. Be2 {[%clk 0:02:28.1]} 13... Ba6 {[%clk 0:01:52.8]} 14.
Bxa6 {[%clk 0:02:27.1]} 14... Rxa6 {[%clk 0:01:53.2]} 15. Nc4 {[%clk 0:02:25.9]}
15... O-O {[%clk 0:01:08.9]} 16. Rhd1 {[%clk 0:02:22.2]} 16... Nf6 {[%clk
0:01:05.8]} 17. f3 {[%clk 0:02:20.1]} 17... Rfa8 {[%clk 0:01:05.9]} 18. Bc7
{[%clk 0:02:09.7]} 18... b5 {[%clk 0:01:02.7]} 19. axb5 {[%clk 0:01:55.7]} 19...
cxb5 {[%clk 0:01:03.4]} 20. Nxa5 {[%clk 0:01:56.9]} 20... Ne8 {[%clk 0:01:02.2]}
21. Rd8 {[%clk 0:01:49.2]} 21... Bf6 {[%clk 0:00:48.6]} 22. Rxa8 {[%clk
0:01:44.3]} 22... Rxa8 {[%clk 0:00:49]} 23. Bg3 {[%clk 0:01:45.4]} 23... Ng7
{[%clk 0:00:42.5]} 24. e5 {[%clk 0:01:43.3]} 24... Nf5 {[%clk 0:00:35.7]} 25.
exf6 {[%clk 0:01:43.9]} 25... Nxg3 {[%clk 0:00:36.7]} 26. fxe7 {[%clk
0:01:45.4]} 26... Nf5 {[%clk 0:00:37]} 27. Nc6 {[%clk 0:01:43.4]} 27... Re8
{[%clk 0:00:37.7]} 28. h5 {[%clk 0:01:22.3]} 28... gxh5 {[%clk 0:00:35.7]} 29.
Re1 {[%clk 0:01:19.4]} 29... f6 {[%clk 0:00:28.9]} 30. Nd4 {[%clk 0:01:10.3]}
30... Nxd4+ {[%clk 0:00:18.4]} 31. cxd4 {[%clk 0:01:10.5]} 31... Kf7 {[%clk
0:00:20.3]} 32. Kb3 {[%clk 0:01:10.4]} 32... h4 {[%clk 0:00:21]} 33. Kb4 {[%clk
0:01:08.1]} 33... h3 {[%clk 0:00:19.3]} 34. gxh3 {[%clk 0:01:08.1]} 34... Rxe7
{[%clk 0:00:20.8]} 35. Rxe7+ {[%clk 0:01:08.2]} 35... Kxe7 {[%clk 0:00:22.7]}
36. Kxb5 {[%clk 0:01:09.4]} 36... Ke6 {[%clk 0:00:23.9]} 37. Kc6 {[%clk
0:01:10.3]} 1-0

[Event "*** Titled Tuesday 3|2 Blitz"]
[Site "Chess.com"]
[Date "2017.06.06"]
[Round "3"]
[White "Fins0905"]
[Black "Squirlolz"]
[Result "0-1"]
[WhiteElo "2421"]
[BlackElo "2333"]
[TimeControl "180+2"]
[EndTime "14:25:57 PDT"]
[Termination "Squirlolz won by resignation"]

1. d4 {[%clk 0:03:02]} 1... e6 {[%clk 0:03:00.5]} 2. c4 {[%clk 0:03:01]} 2...
Nf6 {[%clk 0:03:01.6]} 3. Nc3 {[%clk 0:03:01]} 3... c5 {[%clk 0:03:02.3]} 4. d5
{[%clk 0:03:01.2]} 4... exd5 {[%clk 0:03:04.2]} 5. cxd5 {[%clk 0:03:03.1]} 5...
d6 {[%clk 0:03:06.1]} 6. e4 {[%clk 0:03:03.2]} 6... g6 {[%clk 0:03:08]} 7. Bd3
{[%clk 0:03:03.4]} 7... Bg7 {[%clk 0:03:06.5]} 8. h3 {[%clk 0:03:04.5]} 8...
Nbd7 {[%clk 0:03:07.2]} 9. Nf3 {[%clk 0:03:04.7]} 9... Nh5 {[%clk 0:03:08.4]}
10. Bg5 {[%clk 0:03:03.7]} 10... Bf6 {[%clk 0:03:09]} 11. Be3 {[%clk 0:03:04.7]}
11... Ne5 {[%clk 0:03:09.1]} 12. Be2 {[%clk 0:03:03.9]} 12... Nxf3+ {[%clk
0:03:00.4]} 13. Bxf3 {[%clk 0:03:05.8]} 13... Bg5 {[%clk 0:02:58.3]} 14. Qd2
{[%clk 0:02:57.5]} 14... Bxe3 {[%clk 0:02:30]} 15. Qxe3 {[%clk 0:02:59.4]} 15...
Nf6 {[%clk 0:02:31.7]} 16. e5 {[%clk 0:02:41.9]} 16... dxe5 {[%clk 0:02:33.6]}
17. Qxe5+ {[%clk 0:02:40]} 17... Qe7 {[%clk 0:02:34.3]} 18. Qxe7+ {[%clk
0:02:37.6]} 18... Kxe7 {[%clk 0:02:36.2]} 19. O-O-O {[%clk 0:02:35.6]} 19... Rd8
{[%clk 0:02:37.2]} 20. Rhe1+ {[%clk 0:02:31.2]} 20... Kf8 {[%clk 0:02:38.2]} 21.
d6 {[%clk 0:02:10.3]} 21... Be6 {[%clk 0:02:03.5]} 22. Bxb7 {[%clk 0:02:02.2]}
22... Rab8 {[%clk 0:02:03.8]} 23. Bf3 {[%clk 0:01:55.8]} 23... Rb6 {[%clk
0:02:03.1]} 24. Re5 {[%clk 0:01:51.1]} 24... c4 {[%clk 0:01:24.1]} 25. Ra5
{[%clk 0:01:38.7]} 25... a6 {[%clk 0:01:24.8]} 26. Na4 {[%clk 0:01:27.9]} 26...
Rbxd6 {[%clk 0:01:25.5]} 27. Rxa6 {[%clk 0:01:08.8]} 27... Rxd1+ {[%clk
0:00:35.9]} 28. Bxd1 {[%clk 0:01:10.7]} 28... Ne4 {[%clk 0:00:37.8]} 29. f3
{[%clk 0:01:04.4]} 29... Nf2 {[%clk 0:00:37.8]} 30. Be2 {[%clk 0:01:00.1]} 30...
Nd3+ {[%clk 0:00:38.8]} 31. Bxd3 {[%clk 0:00:59]} 31... cxd3 {[%clk 0:00:39.8]}
32. Nc3 {[%clk 0:00:45.7]} 32... d2+ {[%clk 0:00:35.9]} 33. Kd1 {[%clk
0:00:46.3]} 33... Bc4 {[%clk 0:00:37.6]} 34. Rc6 {[%clk 0:00:36.2]} 34... Bf1
{[%clk 0:00:38.3]} 35. Ne4 {[%clk 0:00:23.8]} 35... Be2+ {[%clk 0:00:37]} 0-1

[Event "*** Titled Tuesday 3|2 Blitz"]
[Site "Chess.com"]
[Date "2017.06.06"]
[Round "3"]
[White "silverback96"]
[Black "GameOverBro"]
[Result "1-0"]
[WhiteElo "2116"]
[BlackElo "2229"]
[TimeControl "180+2"]
[EndTime "14:26:04 PDT"]
[Termination "silverback96 won by resignation"]

1. d4 {[%clk 0:03:02]} 1... d6 {[%clk 0:03:00.4]} 2. c4 {[%clk 0:03:01.8]} 2...
Nf6 {[%clk 0:03:00.9]} 3. Nf3 {[%clk 0:03:01.7]} 3... Nbd7 {[%clk 0:03:01.2]} 4.
g3 {[%clk 0:03:03]} 4... e5 {[%clk 0:03:01.9]} 5. Nc3 {[%clk 0:03:02.6]} 5...
Be7 {[%clk 0:03:02.4]} 6. Bg2 {[%clk 0:03:04]} 6... O-O {[%clk 0:03:03.1]} 7.
O-O {[%clk 0:03:05.9]} 7... c6 {[%clk 0:03:03.9]} 8. e4 {[%clk 0:03:06.6]} 8...
a5 {[%clk 0:03:01.4]} 9. d5 {[%clk 0:03:05.4]} 9... Nc5 {[%clk 0:02:59.5]} 10.
Re1 {[%clk 0:02:56.3]} 10... cxd5 {[%clk 0:02:53.9]} 11. cxd5 {[%clk 0:02:56.8]}
11... b5 {[%clk 0:02:40.9]} 12. Nxb5 {[%clk 0:02:43.6]} 12... Ncxe4 {[%clk
0:02:33.9]} 13. Nxe5 {[%clk 0:02:42.7]} 13... Nxf2 {[%clk 0:02:24.1]} 14. Nc6
{[%clk 0:02:21.4]} 14... Nxd1 {[%clk 0:02:15.9]} 15. Nxd8 {[%clk 0:02:22.2]}
15... Bxd8 {[%clk 0:01:52.2]} 16. Rxd1 {[%clk 0:02:23.3]} 16... Bb6+ {[%clk
0:01:52.8]} 17. Kf1 {[%clk 0:02:18.5]} 17... Ng4 {[%clk 0:01:17.8]} 18. Bf3
{[%clk 0:02:19.3]} 18... Nxh2+ {[%clk 0:01:16.6]} 19. Kg2 {[%clk 0:02:20.8]}
19... Nxf3 {[%clk 0:01:16.8]} 20. Kxf3 {[%clk 0:02:22.7]} 20... h5 {[%clk
0:01:15.5]} 21. Kg2 {[%clk 0:02:17.3]} 21... Bc5 {[%clk 0:01:13.4]} 22. Bf4
{[%clk 0:02:15.8]} 22... Bg4 {[%clk 0:01:12.8]} 23. Re1 {[%clk 0:02:12.3]} 23...
Rab8 {[%clk 0:01:10]} 24. a4 {[%clk 0:02:06.9]} 24... Rbd8 {[%clk 0:01:03.7]}
25. Re7 {[%clk 0:02:02.5]} 25... Rfe8 {[%clk 0:01:00]} 26. Rae1 {[%clk
0:02:01.8]} 26... Rxe7 {[%clk 0:01:00.9]} 27. Rxe7 {[%clk 0:02:03.7]} 27... Kf8
{[%clk 0:01:02.2]} 28. Rb7 {[%clk 0:01:52.8]} 28... f6 {[%clk 0:00:59.5]} 29.
Nc7 {[%clk 0:01:45.8]} 29... g5 {[%clk 0:00:58.1]} 30. Bd2 {[%clk 0:01:43.7]}
30... Rd7 {[%clk 0:00:52.5]} 31. Rb8+ {[%clk 0:01:35.2]} 31... Kf7 {[%clk
0:00:47.9]} 32. Bxa5 {[%clk 0:01:36.3]} 32... Bf5 {[%clk 0:00:44.6]} 33. b4
{[%clk 0:01:36.4]} 33... Be4+ {[%clk 0:00:43.1]} 34. Kh2 {[%clk 0:01:37.7]}
34... Bd4 {[%clk 0:00:41.6]} 35. b5 {[%clk 0:01:31.5]} 35... Bc2 {[%clk
0:00:39.4]} 36. b6 {[%clk 0:01:30.2]} 36... Bxa4 {[%clk 0:00:35.6]} 37. b7
{[%clk 0:01:31.3]} 37... Re7 {[%clk 0:00:19.6]} 38. Rf8+ {[%clk 0:01:25.4]}
38... Kxf8 {[%clk 0:00:20.1]} 39. b8=Q+ {[%clk 0:01:22]} 39... Kf7 {[%clk
0:00:21.6]} 40. Ne6 {[%clk 0:01:22.6]} 40... Be8 {[%clk 0:00:15.7]} 41. Bd8
{[%clk 0:01:18.7]} 41... Ba7 {[%clk 0:00:13.8]} 42. Qb1 {[%clk 0:01:16]} 1-0

[Event "*** Titled Tuesday 3|2 Blitz"]
[Site "Chess.com"]
[Date "2017.06.06"]
[Round "3"]
[White "Rating-Schmating"]
[Black "CookiesAndIceCream"]
[Result "1-0"]
[WhiteElo "2342"]
[BlackElo "2221"]
[TimeControl "180+2"]
[EndTime "14:26:07 PDT"]
[Termination "Rating-Schmating won by resignation"]

1. e4 {[%clk 0:03:01.9]} 1... e5 {[%clk 0:03:00.3]} 2. Nf3 {[%clk 0:03:02.1]}
2... Nc6 {[%clk 0:03:01.8]} 3. d4 {[%clk 0:03:01.7]} 3... exd4 {[%clk
0:03:02.8]} 4. Nxd4 {[%clk 0:03:03.6]} 4... Nf6 {[%clk 0:03:04]} 5. Nxc6 {[%clk
0:03:04.3]} 5... bxc6 {[%clk 0:03:05.5]} 6. e5 {[%clk 0:03:05.3]} 6... Qe7
{[%clk 0:03:06.5]} 7. Qe2 {[%clk 0:03:03.8]} 7... Nd5 {[%clk 0:03:07.9]} 8. c4
{[%clk 0:03:05.1]} 8... Ba6 {[%clk 0:03:09.2]} 9. Nd2 {[%clk 0:03:06.1]} 9...
Nf4 {[%clk 0:03:04.9]} 10. Qe4 {[%clk 0:03:06.4]} 10... Ne6 {[%clk 0:03:04.3]}
11. Nf3 {[%clk 0:03:06.9]} 11... g6 {[%clk 0:03:00.2]} 12. b3 {[%clk 0:03:04.7]}
12... Bg7 {[%clk 0:03:00.5]} 13. Bb2 {[%clk 0:03:05.7]} 13... O-O {[%clk
0:02:59.8]} 14. Be2 {[%clk 0:03:02.8]} 14... Rfe8 {[%clk 0:02:48.8]} 15. O-O
{[%clk 0:03:01.3]} 15... Nc5 {[%clk 0:02:29.3]} 16. Qc2 {[%clk 0:03:00.3]} 16...
d6 {[%clk 0:02:26.9]} 17. b4 {[%clk 0:02:43.3]} 17... Nd7 {[%clk 0:02:23.8]} 18.
Rfe1 {[%clk 0:02:09.8]} 18... Nxe5 {[%clk 0:02:22.9]} 19. Nxe5 {[%clk
0:02:10.9]} 19... Bxe5 {[%clk 0:02:24.2]} 20. Bxe5 {[%clk 0:02:12.1]} 20... Qxe5
{[%clk 0:02:20.3]} 21. h3 {[%clk 0:02:12.1]} 21... d5 {[%clk 0:02:11.7]} 22. b5
{[%clk 0:02:09]} 22... Bb7 {[%clk 0:01:48.3]} 23. Bf3 {[%clk 0:02:07.1]} 23...
Qd4 {[%clk 0:01:47.7]} 24. cxd5 {[%clk 0:02:03.6]} 24... cxb5 {[%clk 0:01:40]}
25. Qxc7 {[%clk 0:02:04.2]} 25... Bxd5 {[%clk 0:01:22.9]} 26. Red1 {[%clk
0:01:57.7]} 26... Qc4 {[%clk 0:01:24.3]} 27. Qxc4 {[%clk 0:01:53.2]} 27... Bxc4
{[%clk 0:01:26.2]} 28. Bxa8 {[%clk 0:01:54.1]} 28... Rxa8 {[%clk 0:01:28.1]} 29.
a4 {[%clk 0:01:49.8]} 29... a6 {[%clk 0:01:24.3]} 30. axb5 {[%clk 0:01:49.7]}
30... Bxb5 {[%clk 0:01:26]} 31. Rd5 {[%clk 0:01:48]} 31... Rc8 {[%clk 0:01:24]}
32. Re1 {[%clk 0:01:36.9]} 32... Re8 {[%clk 0:01:17.2]} 33. Rxe8+ {[%clk
0:01:35]} 33... Bxe8 {[%clk 0:01:18.7]} 34. Rd8 {[%clk 0:01:36.6]} 34... Kf8
{[%clk 0:01:18.1]} 35. Ra8 {[%clk 0:01:38.2]} 35... Ke7 {[%clk 0:01:17.4]} 36.
Rxa6 {[%clk 0:01:39.3]} 36... Bd7 {[%clk 0:01:18.9]} 37. g4 {[%clk 0:01:39.1]}
37... Be6 {[%clk 0:01:15.5]} 38. g5 {[%clk 0:01:38.1]} 38... Bc4 {[%clk
0:01:12.8]} 39. Ra7+ {[%clk 0:01:38.5]} 39... Ke6 {[%clk 0:01:12.7]} 40. Kg2
{[%clk 0:01:40.1]} 40... Kf5 {[%clk 0:01:12.3]} 41. h4 {[%clk 0:01:39.6]} 41...
Be6 {[%clk 0:01:10.3]} 42. Kg3 {[%clk 0:01:40]} 42... Ke5 {[%clk 0:01:09.7]} 43.
f4+ {[%clk 0:01:37.4]} 43... Kd6 {[%clk 0:01:09.9]} 44. Kf3 {[%clk 0:01:37.7]}
44... Bd5+ {[%clk 0:01:09.3]} 45. Ke3 {[%clk 0:01:38.5]} 45... Ke6 {[%clk
0:01:10.4]} 46. Kd4 {[%clk 0:01:39]} 46... Bb3 {[%clk 0:01:10.7]} 47. Ra6+
{[%clk 0:01:26.6]} 47... Kf5 {[%clk 0:01:10.1]} 48. Rf6+ {[%clk 0:01:27.5]}
48... Kg4 {[%clk 0:01:10.3]} 49. Ke5 {[%clk 0:01:26.5]} 49... Kxh4 {[%clk
0:01:10.7]} 50. Kd6 {[%clk 0:01:27.4]} 50... Kg4 {[%clk 0:01:11.5]} 51. Ke7
{[%clk 0:01:28.4]} 51... Bc4 {[%clk 0:01:11.8]} 52. Kf8 {[%clk 0:01:29.5]} 52...
Kh5 {[%clk 0:01:10.3]} 53. Kg7 {[%clk 0:01:29.9]} 53... Kg4 {[%clk 0:01:05.8]}
54. Kxh7 {[%clk 0:01:30.2]} 54... Kf3 {[%clk 0:00:55.6]} 55. Kg7 {[%clk
0:01:31.3]} 55... Ke4 {[%clk 0:00:56.3]} 56. Rxf7 {[%clk 0:01:30]} 56... Bxf7
{[%clk 0:00:55.2]} 57. Kxf7 {[%clk 0:01:31.2]} 1-0

[Event "*** Titled Tuesday 3|2 Blitz"]
[Site "Chess.com"]
[Date "2017.06.06"]
[Round "3"]
[White "angieflynn"]
[Black "Shivagami"]
[Result "0-1"]
[WhiteElo "1761"]
[BlackElo "2002"]
[TimeControl "180+2"]
[EndTime "14:26:14 PDT"]
[Termination "Shivagami won by resignation"]

1. c4 {[%clk 0:02:55.2]} 1... Nc6 {[%clk 0:02:53.9]} 2. g3 {[%clk 0:02:52.7]}
2... e5 {[%clk 0:02:52.6]} 3. Bg2 {[%clk 0:02:53.2]} 3... Nf6 {[%clk 0:02:53.4]}
4. b3 {[%clk 0:02:53.2]} 4... g6 {[%clk 0:02:48.1]} 5. Bb2 {[%clk 0:02:53.7]}
5... d6 {[%clk 0:02:48.2]} 6. e3 {[%clk 0:02:48.6]} 6... Bg7 {[%clk 0:02:48]} 7.
d4 {[%clk 0:02:45]} 7... exd4 {[%clk 0:02:40.3]} 8. exd4 {[%clk 0:02:45.3]} 8...
O-O {[%clk 0:02:41.1]} 9. Ne2 {[%clk 0:02:43.8]} 9... Bf5 {[%clk 0:02:41.3]} 10.
a3 {[%clk 0:02:34.3]} 10... Qd7 {[%clk 0:02:35.2]} 11. O-O {[%clk 0:02:34.7]}
11... Bh3 {[%clk 0:02:32.6]} 12. Nf4 {[%clk 0:02:35.1]} 12... Bxg2 {[%clk
0:02:29.6]} 13. Kxg2 {[%clk 0:02:36.1]} 13... Rfe8 {[%clk 0:02:18.3]} 14. Nc3
{[%clk 0:02:29.8]} 14... Ne4 {[%clk 0:01:59.1]} 15. Nfe2 {[%clk 0:01:56.3]}
15... Ng5 {[%clk 0:01:52.2]} 16. Nf4 {[%clk 0:01:50.4]} 16... Bxd4 {[%clk
0:01:40]} 17. h4 {[%clk 0:01:38.6]} 17... Ne6 {[%clk 0:01:37.4]} 18. Qg4 {[%clk
0:01:26.5]} 18... Ne5 {[%clk 0:01:27.3]} 19. Qd1 {[%clk 0:00:55.8]} 19... Nxf4+
{[%clk 0:01:20]} 20. gxf4 {[%clk 0:00:56.3]} 20... Nc6 {[%clk 0:01:20]} 21. Qf3
{[%clk 0:00:45.8]} 21... Qf5 {[%clk 0:01:03.5]} 22. Rfe1 {[%clk 0:00:28.4]}
22... Qc2 {[%clk 0:00:58.8]} 23. Rab1 {[%clk 0:00:20.1]} 23... Rxe1 {[%clk
0:00:55.2]} 24. Rxe1 {[%clk 0:00:17.5]} 24... Qxb2 {[%clk 0:00:55.4]} 25. Ne4
{[%clk 0:00:17.9]} 25... Bg7 {[%clk 0:00:49.8]} 26. Re2 {[%clk 0:00:17]} 26...
Nd4 {[%clk 0:00:48.8]} 27. Rxb2 {[%clk 0:00:12.4]} 27... Nxf3 {[%clk 0:00:46.5]}
28. Re2 {[%clk 0:00:12.4]} 28... Nd4 {[%clk 0:00:45.9]} 29. Re3 {[%clk
0:00:12.8]} 29... Nf5 {[%clk 0:00:46.2]} 30. Rh3 {[%clk 0:00:12.7]} 30... Re8
{[%clk 0:00:46.8]} 31. f3 {[%clk 0:00:12.9]} 31... c6 {[%clk 0:00:43.9]} 32. h5
{[%clk 0:00:13.4]} 32... d5 {[%clk 0:00:42]} 33. Ng5 {[%clk 0:00:12.1]} 33... h6
{[%clk 0:00:33.8]} 34. hxg6 {[%clk 0:00:11.5]} 34... fxg6 {[%clk 0:00:35.7]} 0-1

[Event "*** Titled Tuesday 3|2 Blitz"]
[Site "Chess.com"]
[Date "2017.06.06"]
[Round "3"]
[White "3f32"]
[Black "proxy6"]
[Result "0-1"]
[WhiteElo "2382"]
[BlackElo "2313"]
[TimeControl "180+2"]
[EndTime "14:26:35 PDT"]
[Termination "proxy6 won by resignation"]

1. d4 {[%clk 0:03:02]} 1... Nf6 {[%clk 0:02:59.8]} 2. c4 {[%clk 0:03:00.9]} 2...
e6 {[%clk 0:03:00.3]} 3. Nc3 {[%clk 0:03:02.2]} 3... Bb4 {[%clk 0:03:01.1]} 4.
f3 {[%clk 0:03:03.2]} 4... d5 {[%clk 0:02:52.8]} 5. a3 {[%clk 0:03:02.2]} 5...
Bxc3+ {[%clk 0:02:52.4]} 6. bxc3 {[%clk 0:03:04.1]} 6... c5 {[%clk 0:02:53]} 7.
cxd5 {[%clk 0:03:05.2]} 7... Nxd5 {[%clk 0:02:52.7]} 8. dxc5 {[%clk 0:03:06.4]}
8... Qa5 {[%clk 0:02:50.2]} 9. e4 {[%clk 0:03:06]} 9... Ne7 {[%clk 0:02:41.1]}
10. Be3 {[%clk 0:03:02.8]} 10... Qxc3+ {[%clk 0:02:40.7]} 11. Kf2 {[%clk
0:03:02.5]} 11... O-O {[%clk 0:02:36]} 12. Ne2 {[%clk 0:02:56.1]} 12... Qa5
{[%clk 0:02:32.5]} 13. Qd6 {[%clk 0:01:57.3]} 13... Nbc6 {[%clk 0:02:26.7]} 14.
Nc1 {[%clk 0:01:33.1]} 14... Rd8 {[%clk 0:02:16.4]} 15. Qg3 {[%clk 0:01:31.6]}
15... Rd1 {[%clk 0:02:03.3]} 16. Ke2 {[%clk 0:01:06]} 16... Qa4 {[%clk
0:01:51.4]} 17. Ra2 {[%clk 0:00:52.9]} 17... Rxc1 {[%clk 0:01:39.6]} 18. Bxc1
{[%clk 0:00:48.3]} 18... Qc4+ {[%clk 0:01:40.1]} 19. Kd1 {[%clk 0:00:48.8]}
19... Qxa2 {[%clk 0:01:39.8]} 20. Qd6 {[%clk 0:00:47.6]} 20... Bd7 {[%clk
0:01:34.4]} 21. Bd3 {[%clk 0:00:44.7]} 21... Rd8 {[%clk 0:01:33.6]} 22. Qf4
{[%clk 0:00:30.5]} 22... Nd4 {[%clk 0:01:03]} 23. Qc7 {[%clk 0:00:25.2]} 23...
Ba4+ {[%clk 0:01:01.3]} 24. Ke1 {[%clk 0:00:23]} 24... Nec6 {[%clk 0:00:54]} 25.
Bd2 {[%clk 0:00:18.5]} 25... Qa1+ {[%clk 0:00:50]} 26. Kf2 {[%clk 0:00:19.3]}
26... Qxh1 {[%clk 0:00:50.2]} 27. Bg5 {[%clk 0:00:20]} 27... Rf8 {[%clk
0:00:36.1]} 28. Bf1 {[%clk 0:00:17.8]} 28... e5 {[%clk 0:00:34.8]} 29. Qxb7
{[%clk 0:00:15.4]} 29... Qxh2 {[%clk 0:00:34.8]} 30. Qa6 {[%clk 0:00:13]} 30...
Bb3 {[%clk 0:00:28.5]} 31. Qb7 {[%clk 0:00:12.7]} 31... h6 {[%clk 0:00:26.4]}
32. Be3 {[%clk 0:00:13.4]} 32... Qh4+ {[%clk 0:00:25.8]} 33. g3 {[%clk
0:00:12.5]} 33... Qf6 {[%clk 0:00:19.1]} 34. Bg2 {[%clk 0:00:10]} 34... Bd1
{[%clk 0:00:20.1]} 35. f4 {[%clk 0:00:08.3]} 35... exf4 {[%clk 0:00:19.4]} 36.
gxf4 {[%clk 0:00:10.2]} 36... Qh4+ {[%clk 0:00:18.9]} 37. Kg1 {[%clk 0:00:10.8]}
37... Qe1+ {[%clk 0:00:15.2]} 38. Kh2 {[%clk 0:00:12.4]} 38... Qxe3 {[%clk
0:00:16.2]} 39. e5 {[%clk 0:00:14.3]} 0-1